bitfinex/quotes_BTCUSD_20240820
["timestamp","ask_amount","ask_price","bid_price","bid_amount"]
[1724154799128,0.000825,60582.0,60581.0,1.0321609]
[1724154800702,0.002825,60582.0,60581.0,1.0351609]
[1724154800905,0.000825,60582.0,60581.0,1.0351609]
[1724154801356,0.000825,60582.0,60581.0,1.0371609]
[1724154801940,0.000825,60582.0,60581.0,1.1015609]
[1724154805923,0.000825,60582.0,60581.0,1.3656699]
[1724154810864,0.000825,60582.0,60581.0,2.4797789]
[1724154811110,0.000825,60582.0,60581.0,2.5057789]
[1724154811313,0.000825,60582.0,60581.0,2.58004283]
[1724154811518,0.000825,60582.0,60581.0,2.83501253]
[1724154811725,0.1,60594.0,60590.0,1.100541]
[1724154811937,0.1,60594.0,60590.0,2.60207783]
[1724154812140,0.1,60594.0,60590.0,2.55257368]
[1724154812340,0.1,60594.0,60590.0,2.43937368]
[1724154812576,0.1,60594.0,60590.0,2.47257368]
[1724154812779,0.1,60594.0,60590.0,1.67320812]
[1724154812999,0.1,60594.0,60590.0,2.66640812]
[1724154813178,0.1,60594.0,60590.0,2.66740812]
[1724154813501,0.1,60594.0,60590.0,2.69040812]
[1724154813704,0.1,60594.0,60590.0,1.69720812]
[1724154813945,0.1,60594.0,60590.0,2.60640812]
[1724154814424,0.1,60594.0,60590.0,2.62240812]
[1724154814644,0.1,60594.0,60590.0,2.61340812]
[1724154814823,0.1,60594.0,60590.0,2.62840812]
[1724154815229,0.1,60594.0,60590.0,2.61440812]
[1724154815432,0.1,60594.0,60590.0,2.60040812]
[1724154815650,0.1,60594.0,60590.0,2.61440812]
[1724154815853,0.1,60594.0,60590.0,2.62905011]
[1724154816297,0.1,60594.0,60590.0,2.89311911]
[1724154816539,0.1,60594.0,60590.0,2.95184799]
[1724154816797,0.1,60594.0,60590.0,2.90248259]
[1724154817052,0.1,60594.0,60590.0,3.02935735]
[1724154817307,0.1,60594.0,60590.0,2.95182198]
[1724154817583,0.1,60594.0,60590.0,3.28782198]
[1724154818027,0.1,60594.0,60590.0,3.27382198]
[1724154818272,0.1,60594.0,60590.0,3.23848259]
[1724154818983,0.100826,60599.0,60590.0,3.23848259]
[1724154819750,0.100826,60599.0,60590.0,3.25248259]
[1724154820262,0.100826,60599.0,60590.0,3.23848259]
[1724154820501,0.100826,60599.0,60590.0,3.25248259]
[1724154820967,0.100826,60599.0,60590.0,3.23848259]
[1724154821480,0.100826,60599.0,60590.0,3.25248259]
[1724154822710,1e-06,60591.0,60590.0,3.25248259]
[1724154822945,1e-06,60591.0,60590.0,3.51655159]
[1724154825378,1e-06,60591.0,60590.0,3.52655159]
[1724154825636,1e-06,60591.0,60590.0,4.22655159]
[1724154831574,0.100826,60599.0,60598.0,1.70553399]
[1724154831818,0.100826,60599.0,60598.0,2.74253697]
[1724154832058,0.100826,60599.0,60598.0,2.74653697]
[1724154832312,0.100826,60599.0,60598.0,2.74889767]
[1724154832526,0.100826,60599.0,60598.0,3.09889767]
[1724154832816,0.100826,60599.0,60598.0,3.24614632]
[1724154833057,0.100826,60599.0,60598.0,3.26014632]
[1724154834718,0.100826,60599.0,60598.0,3.27414632]
[1724154834950,0.100826,60599.0,60598.0,3.28372448]
[1724154835454,0.100826,60599.0,60598.0,3.26972448]
[1724154835695,0.100826,60599.0,60598.0,3.25172448]
[1724154835943,0.100826,60599.0,60598.0,3.27972448]
[1724154837121,0.100826,60599.0,60598.0,2.53784749]
[1724154837327,0.100826,60599.0,60598.0,2.63704749]
[1724154837528,0.100826,60599.0,60598.0,2.65104749]
[1724154837733,0.100826,60599.0,60598.0,2.66504749]
[1724154838171,0.100826,60599.0,60598.0,2.65104749]
[1724154838378,0.100826,60599.0,60598.0,2.63704749]
[1724154838574,0.100826,60599.0,60598.0,2.65104749]
[1724154838779,0.100826,60599.0,60598.0,2.66504749]
[1724154838985,0.100826,60599.0,60598.0,2.65104749]
[1724154839610,0.100826,60599.0,60598.0,2.65304749]
[1724154840035,0.100826,60599.0,60598.0,2.91972448]
[1724154840503,0.100826,60599.0,60598.0,2.93372448]
[1724154841113,0.100826,60599.0,60598.0,3.27972448]
[1724154841319,0.100826,60599.0,60598.0,3.28972448]
[1724154841521,0.100826,60599.0,60598.0,2.93972448]
[1724154845189,0.100826,60599.0,60598.0,1.81184749]
[1724154845392,0.100826,60599.0,60598.0,2.65504749]
[1724154846789,0.100826,60599.0,60598.0,2.62704749]
[1724154847730,0.100826,60599.0,60598.0,2.65504749]
[1724154847928,0.100826,60599.0,60598.0,2.64104749]
[1724154848485,0.100826,60599.0,60598.0,2.62704749]
[1724154848687,0.100826,60599.0,60598.0,2.64104749]
[1724154849032,0.100826,60599.0,60598.0,2.50154749]
[1724154850016,0.100826,60599.0,60598.0,2.51554749]
[1724154850223,0.100826,60599.0,60598.0,2.40234749]
[1724154850378,0.100826,60599.0,60598.0,2.51554749]
[1724154852350,0.100826,60599.0,60598.0,2.86554749]
[1724154856843,0.100826,60599.0,60598.0,2.51554749]
[1724154858438,0.000826,60599.0,60598.0,2.58968425]
[1724154859174,0.000826,60599.0,60598.0,2.65670173]
[1724154859807,0.000826,60599.0,60598.0,2.58968425]
[1724154860184,0.000826,60599.0,60598.0,2.65708956]
[1724154861208,0.000826,60599.0,60598.0,2.58968425]
[1724154861419,0.000826,60599.0,60598.0,2.78732575]
[1724154861826,0.000826,60599.0,60598.0,2.86508269]
[1724154862037,0.000826,60599.0,60598.0,2.9329794]
[1724154862147,0.000826,60599.0,60598.0,2.8587442]
[1724154865152,0.000826,60599.0,60598.0,3.2087442]
[1724154865500,0.000826,60599.0,60598.0,2.9502442]
[1724154865701,0.021326,60599.0,60598.0,0.97402884]
[1724154865910,0.032526,60599.0,60598.0,0.97402884]
[1724154866563,0.03288401,60599.0,60598.0,0.0403607]
[1724154866906,0.54212901,60599.0,60598.0,0.0123607]
[1724154867108,0.54212901,60599.0,60598.0,0.0343607]
[1724154867571,0.54212901,60599.0,60598.0,0.0123607]
[1724154867775,0.59135256,60599.0,60598.0,0.0193607]
[1724154867999,0.59135256,60599.0,60598.0,0.0123607]
[1724154868000,0.61596325,60599.0,60598.0,0.0123607]
[1724154868261,0.92303006,60599.0,60598.0,0.0123607]
[1724154868495,0.5933126,60599.0,60598.0,0.0123607]
[1724154868731,0.4801126,60599.0,60598.0,0.0123607]
[1724154869429,0.43092901,60599.0,60598.0,0.0123607]
[1724154870045,0.39022024,60599.0,60598.0,0.0123607]
[1724154870249,0.38822024,60599.0,60598.0,0.0123607]
[1724154870659,0.39222024,60599.0,60598.0,0.0123607]
[1724154871299,0.38822024,60599.0,60598.0,0.0123607]
[1724154871697,0.39222024,60599.0,60598.0,0.0123607]
[1724154873110,0.004,60599.0,60598.0,0.45483725]
[1724154873353,0.000826,60608.0,60605.0,0.132001]
[1724154873560,0.000826,60608.0,60604.0,0.1132]
[1724154873735,0.000826,60608.0,60606.0,0.131999]
[1724154874203,0.000826,60608.0,60605.0,0.01132]
[1724154874653,0.000826,60608.0,60605.0,0.1456817]
[1724154874856,0.003826,60608.0,60606.0,0.132999]
[1724154875070,0.003826,60608.0,60607.0,0.06747017]
[1724154875277,0.000826,60608.0,60607.0,0.06747017]
[1724154875411,0.000826,60608.0,60607.0,0.06983087]
[1724154876606,0.003826,60608.0,60607.0,0.06983087]
[1724154877220,0.003826,60608.0,60607.0,0.07083087]
[1724154877221,0.006826,60608.0,60607.0,0.07083087]
[1724154877470,0.138821,60608.0,60607.0,0.07083087]
[1724154877876,0.138821,60608.0,60607.0,0.0033607]
[1724154878090,0.006826,60608.0,60607.0,0.0033607]
[1724154881050,0.006826,60608.0,60607.0,0.1353577]
[1724154882069,0.006826,60608.0,60607.0,0.3993527]
[1724154883374,0.006826,60608.0,60607.0,0.1353577]
[1724154883614,0.006826,60608.0,60607.0,0.0033607]
[1724154883615,0.138821,60608.0,60607.0,0.0033607]
[1724154883783,0.666803,60608.0,60607.0,0.0033607]
[1724154884016,0.931794,60608.0,60607.0,0.0033607]
[1724154884194,0.930794,60608.0,60607.0,0.0033607]
[1724154884401,0.97990646,60608.0,60607.0,0.0033607]
[1724154884599,1.14490944,60608.0,60607.0,0.0033607]
[1724154884971,1.14690944,60608.0,60607.0,0.0033607]
[1724154885187,1.09779698,60608.0,60607.0,0.0033607]
[1724154885395,1.47822026,60608.0,60607.0,0.0033607]
[1724154885567,1.57546709,60608.0,60607.0,0.0023607]
[1724154885748,2.0289931,60608.0,60607.0,0.0023607]
[1724154885966,2.0289931,60608.0,60590.0,0.0009075]
[1724154885967,0.660152,60592.0,60590.0,0.0009075]
[1724154886176,1.206713,60592.0,60590.0,0.0009075]
[1724154886647,0.924213,60592.0,60590.0,0.0009075]
[1724154887638,0.924213,60592.0,60591.0,0.0019075]
[1724154887836,0.935213,60592.0,60591.0,0.0019075]
[1724154889255,0.939213,60592.0,60591.0,0.0029075]
[1724154889641,0.935213,60592.0,60591.0,0.0019075]
[1724154889997,0.928213,60592.0,60591.0,0.0019075]
[1724154890405,0.939213,60592.0,60591.0,0.0029075]
[1724154891208,0.928213,60592.0,60591.0,0.0019075]
[1724154891397,0.928213,60592.0,60591.0,0.0029075]
[1724154891398,0.939213,60592.0,60591.0,0.0029075]
[1724154892107,0.940213,60592.0,60591.0,0.0029075]
[1724154892311,0.924213,60592.0,60591.0,0.0009075]
[1724154892987,0.928213,60592.0,60591.0,0.0019075]
[1724154893818,0.939213,60592.0,60591.0,0.0029075]
[1724154893994,0.015,60592.0,60591.0,0.1349395]
[1724154894223,0.004,60592.0,60591.0,0.2229242]
[1724154894633,0.004,60592.0,60591.0,0.2239242]
[1724154894634,0.015,60592.0,60591.0,0.2239242]
[1724154894965,0.015,60592.0,60591.0,0.0019075]
[1724154895338,0.004,60592.0,60591.0,0.0019075]
[1724154895551,0.132027,60594.0,60591.0,0.0009075]
[1724154896177,0.01,60592.0,60591.0,0.0019075]
[1724154896402,0.014,60592.0,60591.0,0.0029075]
[1724154896610,0.14603,60592.0,60591.0,0.0029075]
[1724154896816,0.410091,60592.0,60591.0,0.0029075]
[1724154897023,0.406091,60592.0,60591.0,0.0019075]
[1724154897467,0.406091,60592.0,60591.0,0.0029075]
[1724154897686,0.396091,60592.0,60591.0,0.0019075]
[1724154898518,0.396091,60592.0,60591.0,0.0029075]
[1724154898718,0.396091,60592.0,60591.0,0.0019075]
[1724154898937,0.396091,60592.0,60591.0,0.0009075]
[1724154899137,0.264046,60596.0,60591.0,0.0142931]
[1724154899382,0.011,60592.0,60591.0,0.1339395]
[1724154899596,0.011,60592.0,60591.0,0.20808]
[1724154899833,0.011,60592.0,60591.0,0.27288]
[1724154900033,0.007,60592.0,60591.0,0.27288]
[1724154900361,0.007,60592.0,60591.0,0.27388]
[1724154900916,0.132024,60595.0,60592.0,0.132029]
[1724154901182,0.004,60596.0,60595.0,0.132024]
[1724154901400,0.014,60596.0,60595.0,0.132024]
[1724154901599,0.004,60596.0,60595.0,0.132024]
[1724154902209,0.132841,60599.0,60595.0,0.208924]
[1724154902821,0.01,60596.0,60595.0,0.209924]
[1724154903035,0.01,60596.0,60595.0,0.001]
[1724154903444,0.142021,60596.0,60595.0,0.001]
[1724154903649,0.142021,60596.0,60595.0,0.002]
[1724154904080,0.01,60596.0,60595.0,0.001]
[1724154904708,0.01,60596.0,60594.0,0.132025]
[1724154904709,0.132017,60598.0,60594.0,0.132025]
[1724154904951,0.132017,60598.0,60595.0,0.001]
[1724154905327,0.132017,60598.0,60596.0,0.0613735]
[1724154905481,0.132019,60597.0,60596.0,0.0613735]
[1724154905682,0.010825,60599.0,60595.0,0.002]
[1724154905683,0.396064,60596.0,60595.0,0.002]
[1724154905865,0.132029,60593.0,60591.0,0.0009075]
[1724154907169,0.004,60593.0,60591.0,0.0009075]
[1724154907369,0.004,60593.0,60592.0,0.0535724]
[1724154907784,0.004,60593.0,60592.0,0.1146724]
[1724154907988,0.004,60593.0,60592.0,0.1953724]
[1724154908397,0.004,60593.0,60592.0,0.3274024]
[1724154908603,0.012,60593.0,60592.0,0.3284024]
[1724154908779,0.008,60593.0,60592.0,0.3284024]
[1724154909066,0.008,60593.0,60592.0,0.8565244]
[1724154909273,0.012,60593.0,60592.0,0.8565244]
[1724154910725,0.008,60593.0,60592.0,0.8565244]
[1724154911064,0.000825,60598.0,60596.0,0.13202]
[1724154911467,0.000825,60598.0,60597.0,0.274619]
[1724154912631,0.006825,60598.0,60597.0,0.274619]
[1724154912839,0.000825,60598.0,60597.0,0.274619]
[1724154913359,0.003825,60598.0,60597.0,0.274619]
[1724154914649,0.135842,60598.0,60597.0,0.0794]
[1724154914882,0.009825,60598.0,60597.0,0.001]
[1724154915088,0.405877,60598.0,60597.0,0.001]
[1724154915297,0.669912,60598.0,60597.0,0.001]
[1724154922122,0.669912,60598.0,60597.0,0.02867375]
[1724154922727,0.669912,60598.0,60597.0,0.001]
[1724154923138,0.405877,60598.0,60597.0,0.001]
[1724154925472,0.009825,60598.0,60597.0,0.001]
[1724154925671,0.009825,60598.0,60597.0,0.133019]
[1724154926896,0.009825,60598.0,60597.0,0.477958]
[1724154927102,0.009825,60598.0,60597.0,0.58518555]
[1724154928079,0.009825,60598.0,60597.0,0.91282455]
[1724154928491,0.009825,60598.0,60597.0,0.64878555]
[1724154929518,0.009825,60598.0,60597.0,0.91282455]
[1724154930375,0.009825,60598.0,60597.0,0.91373205]
[1724154932487,0.009825,60598.0,60597.0,1.07773503]
[1724154932702,0.009825,60598.0,60597.0,1.34177403]
[1724154934128,0.009825,60598.0,60597.0,1.44177403]
[1724154934493,0.006825,60598.0,60597.0,1.44177403]
[1724154934898,0.001825,60598.0,60597.0,1.44077403]
[1724154935330,0.004825,60598.0,60597.0,1.44077403]
[1724154935535,0.000825,60598.0,60597.0,1.44077403]
[1724154935745,0.000825,60598.0,60597.0,1.44377403]
[1724154935949,0.000825,60598.0,60597.0,1.44477403]
[1724154938652,0.000825,60598.0,60597.0,1.18073503]
[1724154938949,0.000825,60598.0,60597.0,1.07376218]
[1724154941198,0.000825,60598.0,60597.0,1.33780118]
[1724154941397,0.000825,60598.0,60597.0,1.07376218]
[1724154942023,0.000825,60598.0,60597.0,1.33780118]
[1724154942223,0.000825,60598.0,60597.0,1.47167205]
[1724154947955,0.000825,60598.0,60597.0,2.60571105]
[1724154948207,0.000825,60598.0,60597.0,1.75871105]
[1724154948408,0.000825,60598.0,60597.0,1.49467205]
[1724154948814,0.000825,60598.0,60597.0,1.49367205]
[1724154949004,0.000825,60598.0,60597.0,1.49067205]
[1724154949289,0.000825,60598.0,60597.0,1.49867205]
[1724154949492,0.000825,60598.0,60597.0,1.49567205]
[1724154949953,0.000825,60598.0,60597.0,1.49967205]
[1724154950729,0.000825,60598.0,60597.0,1.49467205]
[1724154951033,0.000825,60598.0,60597.0,1.50067205]
[1724154953478,0.000825,60598.0,60597.0,2.59471105]
[1724154954237,0.000825,60598.0,60597.0,2.86175005]
[1724154954580,0.000825,60598.0,60597.0,2.85975005]
[1724154954785,0.000825,60598.0,60597.0,2.85375005]
[1724154955190,0.000825,60598.0,60597.0,2.90512775]
[1724154955378,0.000825,60598.0,60597.0,2.86775005]
[1724154955574,0.000825,60598.0,60597.0,2.86975005]
[1724154955777,0.000825,60598.0,60597.0,2.85175005]
[1724154956488,0.000825,60598.0,60597.0,2.86375005]
[1724154956990,0.000825,60598.0,60597.0,2.85375005]
[1724154957394,0.000825,60598.0,60597.0,2.86775005]
[1724154958125,0.000825,60598.0,60597.0,2.86375005]
[1724154958592,0.000825,60598.0,60597.0,2.85175005]
[1724154958794,0.000825,60598.0,60597.0,2.86575005]
[1724154959189,0.000825,60598.0,60597.0,2.87975005]
[1724154959552,0.000825,60598.0,60597.0,3.21575005]
[1724154959759,0.000825,60598.0,60597.0,3.21375005]
[1724154960083,0.000825,60598.0,60597.0,2.58971105]
[1724154961432,0.000825,60598.0,60597.0,2.57571105]
[1724154961637,0.000825,60598.0,60597.0,2.59871105]
[1724154961840,0.000825,60598.0,60597.0,2.61271105]
[1724154962222,0.000825,60598.0,60597.0,2.58471105]
[1724154962665,0.000825,60598.0,60597.0,2.59871105]
[1724154962865,0.000825,60598.0,60597.0,2.58471105]
[1724154963066,0.000825,60598.0,60597.0,2.93471105]
[1724154963272,0.000825,60598.0,60597.0,2.94971105]
[1724154963707,0.000825,60598.0,60597.0,2.94871105]
[1724154963907,0.000825,60598.0,60597.0,2.96271105]
[1724154964320,0.000825,60598.0,60597.0,2.94871105]
[1724154964528,0.000825,60598.0,60597.0,2.96271105]
[1724154964744,0.000825,60598.0,60597.0,2.94871105]
[1724154966204,0.000825,60598.0,60597.0,2.96271105]
[1724154966614,0.000825,60598.0,60597.0,2.94871105]
[1724154966884,0.000825,60598.0,60597.0,2.96271105]
[1724154967173,0.000825,60598.0,60597.0,2.94871105]
[1724154967373,0.000825,60598.0,60597.0,2.93471105]
[1724154967527,0.000825,60598.0,60597.0,2.61271105]
[1724154967917,0.000825,60598.0,60597.0,2.58471105]
[1724154968119,0.000825,60598.0,60597.0,2.59771105]
[1724154968312,0.000825,60598.0,60597.0,2.61171105]
[1724154969443,0.000825,60598.0,60597.0,2.59871105]
[1724154970445,0.000825,60598.0,60597.0,2.61271105]
[1724154971271,0.000825,60598.0,60597.0,2.59871105]
[1724154971472,0.000825,60598.0,60597.0,2.61271105]
[1724154971676,0.000825,60598.0,60597.0,2.96271105]
[1724154974335,0.000825,60598.0,60597.0,2.96371105]
[1724154974945,0.000825,60598.0,60597.0,2.96571105]
[1724154975084,0.000825,60598.0,60597.0,3.23175005]
[1724154975691,0.000825,60598.0,60597.0,3.27715292]
[1724154975909,0.000825,60598.0,60597.0,3.22775005]
[1724154976312,0.000825,60598.0,60597.0,3.21813392]
[1724154976520,0.000825,60598.0,60597.0,2.91754033]
[1724154976776,0.000825,60598.0,60597.0,2.31605592]
[1724154976970,0.000825,60598.0,60597.0,1.34155592]
[1724154977768,0.000825,60598.0,60597.0,1.31355592]
[1724154977926,0.000825,60598.0,60597.0,1.32755592]
[1724154978118,0.000825,60598.0,60597.0,1.34055592]
[1724154979545,0.000825,60598.0,60597.0,1.31355592]
[1724154979741,0.000825,60598.0,60597.0,1.32655592]
[1724154979959,0.000825,60598.0,60597.0,1.34055592]
[1724154983816,0.000825,60598.0,60597.0,1.07651692]
[1724154984018,0.000825,60598.0,60597.0,0.84264605]
[1724154984694,0.000825,60598.0,60597.0,0.41460407]
[1724154985628,0.000825,60598.0,60597.0,0.76564307]
[1724154986058,0.001825,60598.0,60597.0,0.76264307]
[1724154986256,0.000825,60598.0,60597.0,0.76464307]
[1724154986656,0.000825,60598.0,60597.0,0.76764307]
[1724154986902,0.000825,60598.0,60597.0,0.75164307]
[1724154987107,0.000825,60598.0,60597.0,0.87470303]
[1724154987304,0.000825,60598.0,60597.0,0.87970303]
[1724154987971,0.000825,60598.0,60597.0,0.76364307]
[1724154990127,0.000825,60598.0,60597.0,0.23556507]
[1724154991273,0.000825,60598.0,60597.0,0.49960407]
[1724154991492,0.000825,60598.0,60597.0,0.76364307]
[1724154999974,0.000825,60598.0,60597.0,0.1131622]
[1724155000220,0.000825,60598.0,60597.0,0.0131622]
[1724155000892,0.132842,60598.0,60597.0,0.0131622]
[1724155001123,0.132842,60598.0,60597.0,0.0011622]
[1724155001348,0.924947,60598.0,60597.0,0.0011622]
[1724155001550,0.97413158,60598.0,60597.0,0.0011622]
[1724155001758,0.99872387,60598.0,60597.0,0.0011622]
[1724155002713,0.924947,60598.0,60597.0,0.0011622]
[1724155003212,0.928947,60598.0,60597.0,0.0031622]
[1724155003446,0.924947,60598.0,60597.0,0.0031622]
[1724155003683,0.9740876,60598.0,60597.0,0.0011622]
[1724155003853,0.9850876,60598.0,60597.0,0.0031622]
[1724155004094,0.9850876,60598.0,60597.0,0.0021622]
[1724155004248,0.9910876,60598.0,60597.0,0.0031622]
[1724155005568,0.941947,60598.0,60597.0,0.0031622]
[1724155008474,0.413877,60598.0,60597.0,0.0031622]
[1724155008680,0.149842,60598.0,60597.0,0.0031622]
[1724155009409,0.144842,60598.0,60597.0,0.0021622]
[1724155009613,0.144842,60598.0,60597.0,0.0011622]
[1724155009614,0.132842,60598.0,60597.0,0.0011622]
[1724155009840,0.132842,60598.0,60597.0,0.0021622]
[1724155010190,0.142842,60598.0,60597.0,0.0031622]
[1724155010716,0.138842,60598.0,60597.0,0.0021622]
[1724155011139,0.010825,60598.0,60597.0,0.0021622]
[1724155011340,0.142842,60598.0,60597.0,0.0021622]
[1724155012328,0.136842,60598.0,60597.0,0.0011622]
[1724155012500,0.138842,60598.0,60597.0,0.0021622]
[1724155012680,0.141842,60598.0,60597.0,0.0011622]
[1724155013066,0.147842,60598.0,60597.0,0.0021622]
[1724155013266,0.138842,60598.0,60597.0,0.0021622]
[1724155013713,0.148842,60598.0,60597.0,0.0031622]
[1724155013913,0.004825,60598.0,60597.0,0.18735627]
[1724155014119,0.004825,60598.0,60597.0,0.45139527]
[1724155014446,0.000825,60598.0,60597.0,0.45139527]
[1724155014654,0.000825,60598.0,60597.0,0.59249527]
[1724155015383,0.005825,60598.0,60597.0,0.59249527]
[1724155015583,0.007825,60598.0,60597.0,0.59249527]
[1724155016008,0.011825,60598.0,60597.0,0.59249527]
[1724155016209,0.009825,60598.0,60597.0,0.59249527]
[1724155016420,0.010825,60598.0,60597.0,0.59249527]
[1724155021207,0.010825,60598.0,60597.0,0.32845627]
[1724155023244,0.010825,60598.0,60597.0,0.59249527]
[1724155023445,0.010825,60598.0,60597.0,0.85653427]
[1724155024905,0.010825,60598.0,60597.0,0.2742812]
[1724155025111,0.010825,60598.0,60597.0,0.0011622]
[1724155025684,0.142842,60598.0,60597.0,0.0011622]
[1724155026456,0.406877,60598.0,60597.0,0.0011622]
[1724155027944,0.783912,60598.0,60597.0,0.0011622]
[1724155028346,0.670912,60598.0,60597.0,0.0011622]
[1724155028570,1.047947,60598.0,60597.0,0.0011622]
[1724155028770,1.93178513,60598.0,60597.0,0.0011622]
[1724155028979,2.00062518,60598.0,60597.0,0.0011622]
[1724155029177,2.00362518,60598.0,60597.0,0.0011622]
[1724155029597,2.00262518,60598.0,60597.0,0.0011622]
[1724155029808,1.99762518,60598.0,60597.0,0.0021622]
[1724155030031,2.16160396,60598.0,60597.0,0.0021622]
[1724155030613,2.16760396,60598.0,60597.0,0.0031622]
[1724155031017,2.00362518,60598.0,60597.0,0.0031622]
[1724155031215,1.85194509,60598.0,60597.0,0.0021622]
[1724155031598,1.85694509,60598.0,60597.0,0.0031622]
[1724155031920,1.74094509,60598.0,60597.0,0.0031622]
[1724155032282,1.85394509,60598.0,60597.0,0.0031622]
[1724155032506,1.42590711,60598.0,60597.0,0.0031622]
[1724155034641,1.31290711,60598.0,60597.0,0.0031622]
[1724155034881,1.17197327,60598.0,60597.0,0.0031622]
[1724155035082,0.45712134,60598.0,60597.0,0.0863622]
[1724155035278,0.19308634,60598.0,60597.0,0.16839207]
[1724155035481,0.143842,60598.0,60597.0,0.1464622]
[1724155035833,0.402877,60598.0,60597.0,0.1444622]
[1724155036037,0.396877,60598.0,60597.0,0.1444622]
[1724155036246,0.396877,60598.0,60597.0,0.1454622]
[1724155036247,0.401877,60598.0,60597.0,0.1454622]
[1724155036642,0.665912,60598.0,60597.0,0.0021622]
[1724155036843,0.72515634,60598.0,60597.0,0.0031622]
[1724155037145,0.97919134,60598.0,60597.0,0.0021622]
[1724155037347,0.97919134,60598.0,60597.0,0.0031622]
[1724155037551,0.98419134,60598.0,60597.0,0.0021622]
[1724155037767,0.98419245,60598.0,60597.0,0.0021622]
[1724155037986,0.98919245,60598.0,60597.0,0.0031622]
[1724155038395,0.98419245,60598.0,60597.0,0.0021622]
[1724155038774,0.97919245,60598.0,60597.0,0.0021622]
[1724155038966,0.98719245,60598.0,60597.0,0.0031622]
[1724155039996,0.937947,60598.0,60597.0,0.0031622]
[1724155041469,0.987198,60598.0,60597.0,0.0031622]
[1724155041617,0.937947,60598.0,60597.0,0.0031622]
[1724155042317,0.924947,60598.0,60597.0,0.0011622]
[1724155042521,0.929947,60598.0,60597.0,0.0031622]
[1724155042745,0.938947,60598.0,60597.0,0.0031622]
[1724155046663,0.08875573,60598.0,60597.0,1.0045812]
[1724155046876,0.08875573,60598.0,60597.0,1.79721105]
[1724155046877,0.014825,60598.0,60597.0,1.79721105]
[1724155047089,0.014825,60598.0,60597.0,1.33125005]
[1724155047703,0.009825,60598.0,60597.0,1.33025005]
[1724155048058,0.002825,60598.0,60597.0,1.32925005]
[1724155048259,0.006825,60598.0,60597.0,1.32925005]
[1724155048507,0.004825,60598.0,60597.0,1.32925005]
[1724155049329,0.005825,60598.0,60597.0,1.32925005]
[1724155053714,0.005825,60598.0,60597.0,2.08925005]
[1724155055485,0.005825,60598.0,60597.0,2.18925005]
[1724155059632,0.001825,60598.0,60597.0,2.18925005]
[1724155059828,0.001825,60598.0,60597.0,2.45328905]
[1724155060381,0.000825,60598.0,60597.0,2.45328905]
[1724155060594,0.000825,60598.0,60597.0,2.56628905]
[1724155060800,0.000825,60598.0,60597.0,2.57928905]
[1724155061203,0.001825,60598.0,60597.0,2.57728905]
[1724155061427,0.000825,60598.0,60597.0,2.56628905]
[1724155061623,0.000825,60598.0,60597.0,2.58028905]
[1724155061829,0.001825,60598.0,60597.0,2.59328905]
[1724155062426,0.001825,60598.0,60597.0,1.83328905]
[1724155066374,0.001825,60598.0,60597.0,1.75159025]
[1724155067207,0.001825,60598.0,60597.0,1.48755125]
[1724155068799,0.001825,60598.0,60597.0,1.37455125]
[1724155069004,0.001825,60598.0,60597.0,1.48755125]
[1724155069407,0.001825,60598.0,60597.0,1.54785125]
[1724155072049,0.001825,60598.0,60597.0,1.54875875]
[1724155072273,0.001825,60598.0,60597.0,2.36875875]
[1724155077712,0.32494,60620.0,60603.0,0.1435]
[1724155077963,0.32494,60620.0,60609.0,0.131991]
[1724155078171,0.131985,60613.0,60609.0,0.131991]
[1724155078301,0.395945,60615.0,60609.0,0.131991]
[1724155078507,0.131982,60614.0,60610.0,0.06108066]
[1724155078993,0.131982,60614.0,60610.0,0.19307166]
[1724155081026,0.002,60614.0,60610.0,0.19307166]
[1724155081839,0.007,60614.0,60610.0,0.19307166]
[1724155082670,0.0606,60613.0,60610.0,0.19307166]
[1724155082880,0.0606,60613.0,60608.0,0.263989]
[1724155083004,0.0606,60613.0,60610.0,0.13199]
[1724155084654,0.0606,60613.0,60599.0,0.075]
[1724155084655,0.061,60610.0,60599.0,0.075]
[1724155084869,0.113,60599.0,60597.0,0.0009075]
[1724155085090,0.457052,60598.0,60597.0,0.0009075]
[1724155086544,0.462052,60598.0,60597.0,0.0009075]
[1724155087266,0.464052,60598.0,60597.0,0.0009075]
[1724155088219,0.728087,60598.0,60597.0,0.0009075]
[1724155092682,0.667087,60598.0,60597.0,0.0009075]
[1724155093834,0.403052,60598.0,60597.0,0.0009075]
[1724155094080,0.139017,60598.0,60597.0,0.0773075]
[1724155094281,0.139017,60598.0,60597.0,0.091539]
[1724155096198,0.007,60598.0,60597.0,0.091539]
[1724155096406,0.139017,60598.0,60597.0,0.091539]
[1724155097226,0.139017,60598.0,60597.0,0.487597]
[1724155097227,0.007,60598.0,60597.0,0.487597]
[1724155098212,0.002,60598.0,60597.0,0.487597]
[1724155098864,0.002,60598.0,60597.0,0.751636]
[1724155099059,0.007,60598.0,60597.0,0.751636]
[1724155099260,0.132,60606.0,60600.0,0.132012]
[1724155099467,0.132,60606.0,60601.0,0.1507329]
[1724155099678,0.132,60606.0,60602.0,0.0607]
[1724155100267,0.04921811,60610.0,60602.0,0.0607]
[1724155100470,0.18120711,60611.0,60607.0,0.0828]
[1724155100675,0.131987,60612.0,60608.0,0.0478801]
[1724155100903,0.131987,60612.0,60609.0,0.0608]
[1724155102593,0.140987,60612.0,60609.0,0.0618]
[1724155102807,0.140987,60612.0,60610.0,0.05884801]
[1724155103024,0.145987,60612.0,60610.0,0.05884801]
[1724155103705,0.131987,60612.0,60610.0,0.05884801]
[1724155105039,0.136987,60612.0,60610.0,0.05984801]
[1724155105249,0.145987,60612.0,60610.0,0.06084801]
[1724155105649,0.145987,60612.0,60611.0,0.03843231]
[1724155106160,0.014,60612.0,60611.0,0.03843231]
[1724155106401,0.145987,60612.0,60611.0,0.11393231]
[1724155106658,0.140987,60612.0,60611.0,0.11393231]
[1724155106858,0.145987,60612.0,60611.0,0.11493231]
[1724155107060,0.136987,60612.0,60611.0,0.11493231]
[1724155107234,0.005,60612.0,60611.0,0.11493231]
[1724155108481,0.014,60612.0,60611.0,0.11593231]
[1724155109760,0.145987,60612.0,60611.0,0.11593231]